[Event "Titled Tuesday Blitz August 15 Early 2023"]
[White "Zampronha, Wladimir Camilo"]
[Black "Delorme, Axel"]
[WhiteFideId "2103087"]
[BlackFideId "632023"]
[WhiteElo "2235"]
[BlackElo "2484"]
[Result "0-1"]
[Round "4"]
[TimeControl "180+1"]
[Date "2023.08.15"]
[WhiteClock "0:01:11"]
[BlackClock "0:00:36"]
[Board "202"]

1. e4 {[%clk 0:02:57]}  c5 {[%clk 0:02:59]} 2. Nf3 {[%clk 0:02:58]}  d6 {[%clk 0:03:00]} 3. d4 {[%clk 0:02:57]}  cxd4 {[%clk 0:03:01]} 4. Nxd4 {[%clk 0:02:57]}  Nf6 {[%clk 0:03:02]} 5. Nc3 {[%clk 0:02:57]}  Bd7 {[%clk 0:03:00]} 6. Bg5 {[%clk 0:02:54]}  e6 {[%clk 0:03:00]} 7. Qd2 {[%clk 0:02:54]}  h6 {[%clk 0:02:59]} 8. Bh4 {[%clk 0:02:54]}  Nxe4 {[%clk 0:02:59]} 9. Nxe4 {[%clk 0:02:48]}  Qxh4 {[%clk 0:02:58]} 10. Bd3 {[%clk 0:02:48]}  d5 {[%clk 0:02:51]} 11. g3 {[%clk 0:02:48]}  Qd8 {[%clk 0:02:45]} 12. Nc3 {[%clk 0:02:47]}  Nc6 {[%clk 0:02:44]} 13. Nxc6 {[%clk 0:02:44]}  Bxc6 {[%clk 0:02:45]} 14. O-O-O {[%clk 0:02:42]}  Bb4 {[%clk 0:02:42]} 15. Qf4 {[%clk 0:02:28]}  Bxc3 {[%clk 0:02:36]} 16. bxc3 {[%clk 0:02:28]}  Qa5 {[%clk 0:02:20]} 17. Rhe1 {[%clk 0:02:21]}  O-O {[%clk 0:02:15]} 18. Qb4 {[%clk 0:02:18]}  Qxa2 {[%clk 0:01:37]} 19. Kd2 {[%clk 0:02:16]}  Qa4 {[%clk 0:01:37]} 20. Qb2 {[%clk 0:01:56]}  Qg4 {[%clk 0:01:30]} 21. f4 {[%clk 0:01:51]}  a5 {[%clk 0:01:22]} 22. Qb6 {[%clk 0:01:50]}  a4 {[%clk 0:01:19]} 23. Ra1 {[%clk 0:01:49]}  Rfe8 {[%clk 0:01:09]} 24. Bb5 {[%clk 0:01:42]}  Rec8 {[%clk 0:00:56]} 25. Bxc6 {[%clk 0:01:38]}  bxc6 {[%clk 0:00:55]} 26. Qb4 {[%clk 0:01:37]}  c5 {[%clk 0:00:54]} 27. Qb5 {[%clk 0:01:34]}  d4 {[%clk 0:00:50]} 28. Rxa4 {[%clk 0:01:30]}  Rxa4 {[%clk 0:00:50]} 29. Qxa4 {[%clk 0:01:29]}  dxc3+ {[%clk 0:00:37]} 30. Kxc3 {[%clk 0:01:30]}  Qf3+ {[%clk 0:00:37]} 31. Kd2 {[%clk 0:01:28]}  Qf2+ {[%clk 0:00:35]} 32. Re2 {[%clk 0:01:11]}  Rd8+ {[%clk 0:00:36]} 0-1


[Site "https://www.chess.com"]

[Event "Titled Tuesday Blitz August 15 Early 2023"]
[White "Harriott, Tyrell"]
[Black "Thiel, Thomas"]
[WhiteFideId "2086484"]
[BlackFideId "4615964"]
[WhiteElo "2418"]
[BlackElo "2226"]
[Result "1-0"]
[Round "4"]
[TimeControl "180+1"]
[Date "2023.08.15"]
[WhiteClock "0:00:22"]
[BlackClock "0:00:45"]
[Board "203"]

1. d4 {[%clk 0:02:50]}  d5 {[%clk 0:02:59]} 2. e3 {[%clk 0:02:51]}  Nf6 {[%clk 0:02:56]} 3. Bd3 {[%clk 0:02:51]}  g6 {[%clk 0:02:56]} 4. f4 {[%clk 0:02:51]}  Bg7 {[%clk 0:02:54]} 5. Nf3 {[%clk 0:02:51]}  O-O {[%clk 0:02:53]} 6. O-O {[%clk 0:02:51]}  c5 {[%clk 0:02:52]} 7. c3 {[%clk 0:02:51]}  cxd4 {[%clk 0:02:50]} 8. exd4 {[%clk 0:02:51]}  Nc6 {[%clk 0:02:49]} 9. Nbd2 {[%clk 0:02:46]}  Bg4 {[%clk 0:02:48]} 10. Qe1 {[%clk 0:02:45]}  e6 {[%clk 0:02:45]} 11. Ne5 {[%clk 0:02:45]}  Bf5 {[%clk 0:02:44]} 12. Be2 {[%clk 0:02:44]}  Ne4 {[%clk 0:02:42]} 13. Nb3 {[%clk 0:02:32]}  h5 {[%clk 0:02:36]} 14. Be3 {[%clk 0:02:28]}  Rc8 {[%clk 0:02:32]} 15. Rc1 {[%clk 0:02:25]}  a6 {[%clk 0:02:30]} 16. Bf2 {[%clk 0:02:09]}  Nxe5 {[%clk 0:02:26]} 17. dxe5 {[%clk 0:02:04]}  Nxf2 {[%clk 0:02:27]} 18. Qxf2 {[%clk 0:02:03]}  b5 {[%clk 0:02:24]} 19. Nd4 {[%clk 0:01:58]}  Be4 {[%clk 0:02:24]} 20. g4 {[%clk 0:01:56]}  hxg4 {[%clk 0:02:20]} 21. Bxg4 {[%clk 0:01:56]}  g5 {[%clk 0:02:15]} 22. Bf3 {[%clk 0:01:50]}  gxf4 {[%clk 0:02:11]} 23. Bxe4 {[%clk 0:01:50]}  dxe4 {[%clk 0:02:07]} 24. Qxf4 {[%clk 0:01:50]}  Qd5 {[%clk 0:02:04]} 25. Rce1 {[%clk 0:01:39]}  Qxe5 {[%clk 0:02:02]} 26. Qxe5 {[%clk 0:01:37]}  Bxe5 {[%clk 0:02:03]} 27. Rxe4 {[%clk 0:01:37]}  Bxd4+ {[%clk 0:01:51]} 28. Rxd4 {[%clk 0:01:38]}  Rfd8 {[%clk 0:01:49]} 29. Rg4+ {[%clk 0:01:25]}  Kf8 {[%clk 0:01:46]} 30. Rh4 {[%clk 0:01:22]}  Ke7 {[%clk 0:01:44]} 31. Rh7 {[%clk 0:01:20]}  Rf8 {[%clk 0:01:43]} 32. h4 {[%clk 0:01:14]}  Rc4 {[%clk 0:01:40]} 33. Kg2 {[%clk 0:01:12]}  Re4 {[%clk 0:01:23]} 34. Rf2 {[%clk 0:01:11]}  Rg8+ {[%clk 0:01:20]} 35. Kh3 {[%clk 0:01:06]}  Re3+ {[%clk 0:01:18]} 36. Kh2 {[%clk 0:01:05]}  Rf8 {[%clk 0:01:18]} 37. h5 {[%clk 0:00:55]}  e5 {[%clk 0:01:17]} 38. h6 {[%clk 0:00:51]}  Ke6 {[%clk 0:01:17]} 39. Rg2 {[%clk 0:00:41]}  Rf3 {[%clk 0:01:08]} 40. Rg3 {[%clk 0:00:26]}  Rf6 {[%clk 0:01:05]} 41. Rh3 {[%clk 0:00:24]}  Rg8 {[%clk 0:01:01]} 42. Rg7 {[%clk 0:00:20]}  Rxg7 {[%clk 0:00:59]} 43. hxg7 {[%clk 0:00:21]}  Rg6 {[%clk 0:00:45]} 44. Rg3 {[%clk 0:00:22]} 1-0


[Site "https://www.chess.com"]

[Event "Titled Tuesday Blitz August 15 Early 2023"]
[White "ivana_999"]
[Black "Kula, Robert"]
[BlackFideId "1101218"]
[WhiteElo "2044"]
[BlackElo "2245"]
[Result "0-1"]
[Round "4"]
[TimeControl "180+1"]
[Date "2023.08.15"]
[WhiteClock "0:00:00"]
[BlackClock "0:00:41"]
[Board "208"]

1. d4 {[%clk 0:03:00]}  d5 {[%clk 0:02:59]} 2. c4 {[%clk 0:02:59]}  c6 {[%clk 0:02:59]} 3. Nc3 {[%clk 0:02:59]}  Nf6 {[%clk 0:02:57]} 4. Nf3 {[%clk 0:02:57]}  dxc4 {[%clk 0:02:57]} 5. e4 {[%clk 0:02:54]}  Be6 {[%clk 0:02:54]} 6. e5 {[%clk 0:02:51]}  Nd5 {[%clk 0:02:51]} 7. Ng5 {[%clk 0:02:23]}  Nxc3 {[%clk 0:02:51]} 8. bxc3 {[%clk 0:02:22]}  Bd5 {[%clk 0:02:50]} 9. e6 {[%clk 0:02:19]}  fxe6 {[%clk 0:02:33]} 10. Be2 {[%clk 0:02:03]}  g6 {[%clk 0:02:24]} 11. Bg4 {[%clk 0:02:00]}  Qd6 {[%clk 0:02:23]} 12. Bf3 {[%clk 0:01:57]}  Bg7 {[%clk 0:02:18]} 13. Bxd5 {[%clk 0:01:51]}  exd5 {[%clk 0:02:17]} 14. Qf3 {[%clk 0:01:50]}  Qf6 {[%clk 0:02:12]} 15. Qg4 {[%clk 0:01:43]}  O-O {[%clk 0:02:10]} 16. Ne6 {[%clk 0:01:34]}  Qxf2+ {[%clk 0:01:59]} 17. Kd1 {[%clk 0:01:33]}  Qf5 {[%clk 0:01:43]} 18. Qxf5 {[%clk 0:01:25]}  gxf5 {[%clk 0:01:42]} 19. Nxf8 {[%clk 0:01:16]}  Bxf8 {[%clk 0:01:41]} 20. Rf1 {[%clk 0:01:10]}  e6 {[%clk 0:01:41]} 21. Re1 {[%clk 0:01:08]}  Kf7 {[%clk 0:01:40]} 22. Kc2 {[%clk 0:01:03]}  Nd7 {[%clk 0:01:40]} 23. Bf4 {[%clk 0:01:02]}  Nf6 {[%clk 0:01:39]} 24. Re3 {[%clk 0:00:54]}  b5 {[%clk 0:01:31]} 25. a4 {[%clk 0:00:51]}  a5 {[%clk 0:01:26]} 26. axb5 {[%clk 0:00:49]}  cxb5 {[%clk 0:01:26]} 27. Bc7 {[%clk 0:00:46]}  a4 {[%clk 0:01:24]} 28. Rh3 {[%clk 0:00:44]}  b4 {[%clk 0:01:18]} 29. cxb4 {[%clk 0:00:41]}  Bxb4 {[%clk 0:01:18]} 30. Be5 {[%clk 0:00:40]}  Be7 {[%clk 0:01:12]} 31. Bxf6 {[%clk 0:00:39]}  Bxf6 {[%clk 0:01:13]} 32. Rxh7+ {[%clk 0:00:36]}  Bg7 {[%clk 0:01:13]} 33. Kc3 {[%clk 0:00:16]}  Kg6 {[%clk 0:01:06]} 34. Rh3 {[%clk 0:00:16]}  Rb8 {[%clk 0:01:05]} 35. Rxa4 {[%clk 0:00:14]}  Rb3+ {[%clk 0:01:04]} 36. Kc2 {[%clk 0:00:14]}  Rxh3 {[%clk 0:01:04]} 37. gxh3 {[%clk 0:00:15]}  Bxd4 {[%clk 0:01:05]} 38. Ra6 {[%clk 0:00:15]}  Kf6 {[%clk 0:01:03]} 39. h4 {[%clk 0:00:12]}  f4 {[%clk 0:00:58]} 40. Kd1 {[%clk 0:00:09]}  f3 {[%clk 0:00:55]} 41. Ke1 {[%clk 0:00:09]}  c3 {[%clk 0:00:54]} 42. Rc6 {[%clk 0:00:08]}  Kf5 {[%clk 0:00:50]} 43. h5 {[%clk 0:00:08]}  Bf6 {[%clk 0:00:45]} 44. h6 {[%clk 0:00:07]}  d4 {[%clk 0:00:45]} 45. h7 {[%clk 0:00:03]}  d3 {[%clk 0:00:45]} 46. Rc5+ {[%clk 0:00:00]}  Ke4 {[%clk 0:00:41]} 0-1


[Site "https://www.chess.com"]

[Event "Titled Tuesday Blitz August 15 Early 2023"]
[White "Baghdasaryan, Vahe"]
[Black "Garcia-Castany Musellas, Gal.la"]
[WhiteFideId "13303139"]
[BlackFideId "2241803"]
[WhiteElo "2435"]
[BlackElo "2266"]
[Result "1-0"]
[Round "4"]
[TimeControl "180+1"]
[Date "2023.08.15"]
[WhiteClock "0:00:06"]
[BlackClock "0:00:00"]
[Board "211"]

1. e4 {[%clk 0:03:00]}  c6 {[%clk 0:02:58]} 2. c4 {[%clk 0:02:59]}  d5 {[%clk 0:02:58]} 3. exd5 {[%clk 0:03:00]}  cxd5 {[%clk 0:02:59]} 4. cxd5 {[%clk 0:03:00]}  Nf6 {[%clk 0:02:59]} 5. Nc3 {[%clk 0:03:00]}  Nxd5 {[%clk 0:02:58]} 6. Nf3 {[%clk 0:02:58]}  Nc6 {[%clk 0:02:54]} 7. d4 {[%clk 0:02:58]}  e6 {[%clk 0:02:48]} 8. Bd3 {[%clk 0:02:57]}  Be7 {[%clk 0:02:44]} 9. O-O {[%clk 0:02:56]}  O-O {[%clk 0:02:42]} 10. a3 {[%clk 0:02:55]}  Nf6 {[%clk 0:02:35]} 11. Bc2 {[%clk 0:02:39]}  b6 {[%clk 0:02:33]} 12. Qd3 {[%clk 0:02:36]}  Bb7 {[%clk 0:02:16]} 13. Re1 {[%clk 0:02:27]}  Re8 {[%clk 0:02:10]} 14. Bg5 {[%clk 0:02:11]}  g6 {[%clk 0:02:08]} 15. Rad1 {[%clk 0:02:09]}  Nd5 {[%clk 0:01:38]} 16. Bh6 {[%clk 0:02:07]}  Rc8 {[%clk 0:01:23]} 17. h4 {[%clk 0:01:51]}  Nxc3 {[%clk 0:01:17]} 18. bxc3 {[%clk 0:01:47]}  Bxh4 {[%clk 0:01:12]} 19. Nxh4 {[%clk 0:01:43]}  Qxh4 {[%clk 0:01:13]} 20. Qd2 {[%clk 0:00:18]}  Ne7 {[%clk 0:01:10]} 21. Bg5 {[%clk 0:00:18]}  Qh5 {[%clk 0:01:03]} 22. f3 {[%clk 0:00:14]}  Nf5 {[%clk 0:00:08]} 23. Bxf5 {[%clk 0:00:08]}  exf5 {[%clk 0:00:07]} 24. Bf6 {[%clk 0:00:08]}  Re6 {[%clk 0:00:02]} 25. Rxe6 {[%clk 0:00:08]}  fxe6 {[%clk 0:00:03]} 26. Re1 {[%clk 0:00:08]}  Kf7 {[%clk 0:00:03]} 27. Be5 {[%clk 0:00:07]}  Bd5 {[%clk 0:00:02]} 28. Qe3 {[%clk 0:00:08]}  Qh4 {[%clk 0:00:00]} 29. Bf4 {[%clk 0:00:06]} 1-0


[Site "https://www.chess.com"]

[Event "Titled Tuesday Blitz August 15 Early 2023"]
[White "Kielinkei"]
[Black "Pumpkin_in_moonlight"]
[WhiteElo "2417"]
[BlackElo "2260"]
[Result "1-0"]
[Round "4"]
[TimeControl "180+1"]
[Date "2023.08.15"]
[WhiteClock "0:01:04"]
[BlackClock "0:00:08"]
[Board "213"]

1. c4 {[%clk 0:03:00]}  Nf6 {[%clk 0:02:57]} 2. Nc3 {[%clk 0:03:00]}  g6 {[%clk 0:02:56]} 3. g3 {[%clk 0:03:00]}  Bg7 {[%clk 0:02:56]} 4. Bg2 {[%clk 0:03:01]}  O-O {[%clk 0:02:56]} 5. e4 {[%clk 0:03:01]}  e5 {[%clk 0:02:52]} 6. Nge2 {[%clk 0:03:02]}  d6 {[%clk 0:02:42]} 7. O-O {[%clk 0:03:02]}  Nc6 {[%clk 0:02:34]} 8. d3 {[%clk 0:03:02]}  Re8 {[%clk 0:02:30]} 9. Be3 {[%clk 0:03:01]}  Ng4 {[%clk 0:02:28]} 10. Bd2 {[%clk 0:02:59]}  Nd4 {[%clk 0:02:23]} 11. h3 {[%clk 0:02:56]}  Nf6 {[%clk 0:02:19]} 12. Nxd4 {[%clk 0:02:54]}  exd4 {[%clk 0:02:19]} 13. Nd5 {[%clk 0:02:53]}  c6 {[%clk 0:02:10]} 14. Nxf6+ {[%clk 0:02:52]}  Bxf6 {[%clk 0:02:11]} 15. f4 {[%clk 0:02:52]}  Bg7 {[%clk 0:02:10]} 16. Qf3 {[%clk 0:02:35]}  f5 {[%clk 0:02:07]} 17. Rae1 {[%clk 0:02:26]}  fxe4 {[%clk 0:02:01]} 18. dxe4 {[%clk 0:02:27]}  Be6 {[%clk 0:01:54]} 19. b3 {[%clk 0:02:26]}  Bf7 {[%clk 0:01:44]} 20. f5 {[%clk 0:02:24]}  gxf5 {[%clk 0:01:42]} 21. exf5 {[%clk 0:02:24]}  Bf6 {[%clk 0:01:34]} 22. g4 {[%clk 0:02:07]}  d5 {[%clk 0:01:03]} 23. g5 {[%clk 0:01:46]}  Bxg5 {[%clk 0:00:55]} 24. Rxe8+ {[%clk 0:01:38]}  Bxe8 {[%clk 0:00:53]} 25. Qg4 {[%clk 0:01:38]}  h6 {[%clk 0:00:44]} 26. h4 {[%clk 0:01:37]}  dxc4 {[%clk 0:00:41]} 27. hxg5 {[%clk 0:01:36]}  h5 {[%clk 0:00:40]} 28. Qe4 {[%clk 0:01:27]}  c3 {[%clk 0:00:37]} 29. Bf4 {[%clk 0:01:18]}  d3 {[%clk 0:00:32]} 30. g6 {[%clk 0:01:12]}  d2 {[%clk 0:00:27]} 31. Qc4+ {[%clk 0:01:09]}  Kg7 {[%clk 0:00:20]} 32. Be5+ {[%clk 0:01:08]}  Kh6 {[%clk 0:00:13]} 33. Qf4+ {[%clk 0:01:04]}  Qg5 {[%clk 0:00:08]} 34. Bg7+ {[%clk 0:01:04]} 1-0


[Site "https://www.chess.com"]

[Event "Titled Tuesday Blitz August 15 Early 2023"]
[White "Daeschler, Florian"]
[Black "Schachpanda_Youtube"]
[WhiteFideId "20678193"]
[WhiteElo "2416"]
[BlackElo "2235"]
[Result "1-0"]
[Round "4"]
[TimeControl "180+1"]
[Date "2023.08.15"]
[WhiteClock "0:00:33"]
[BlackClock "0:00:00"]
[Board "214"]

1. Nf3 {[%clk 0:03:00]}  c6 {[%clk 0:03:00]} 2. c4 {[%clk 0:03:00]}  d5 {[%clk 0:03:00]} 3. e3 {[%clk 0:03:01]}  Nf6 {[%clk 0:03:00]} 4. Nc3 {[%clk 0:03:01]}  e6 {[%clk 0:02:59]} 5. b3 {[%clk 0:03:01]}  Bd6 {[%clk 0:02:59]} 6. Bb2 {[%clk 0:03:01]}  O-O {[%clk 0:02:59]} 7. Qc2 {[%clk 0:03:01]}  Nbd7 {[%clk 0:02:59]} 8. Rg1 {[%clk 0:03:02]}  e5 {[%clk 0:02:51]} 9. cxd5 {[%clk 0:03:01]}  cxd5 {[%clk 0:02:50]} 10. Nb5 {[%clk 0:03:01]}  Bb8 {[%clk 0:02:41]} 11. Rc1 {[%clk 0:02:55]}  e4 {[%clk 0:02:27]} 12. Nfd4 {[%clk 0:02:54]}  Ne5 {[%clk 0:02:27]} 13. Nc7 {[%clk 0:02:51]}  Bxc7 {[%clk 0:02:25]} 14. Qxc7 {[%clk 0:02:52]}  Qe8 {[%clk 0:02:01]} 15. Bb5 {[%clk 0:02:42]}  Bd7 {[%clk 0:02:00]} 16. Bxd7 {[%clk 0:02:02]}  Nfxd7 {[%clk 0:01:57]} 17. Ke2 {[%clk 0:01:58]}  Nd3 {[%clk 0:01:43]} 18. Ba3 {[%clk 0:01:14]}  Nxc1+ {[%clk 0:01:36]} 19. Rxc1 {[%clk 0:01:13]}  Rc8 {[%clk 0:01:30]} 20. Qxb7 {[%clk 0:01:10]}  Rxc1 {[%clk 0:01:29]} 21. Bxc1 {[%clk 0:01:11]}  Nc5 {[%clk 0:01:14]} 22. Qxd5 {[%clk 0:01:08]}  Qc8 {[%clk 0:00:33]} 23. Ba3 {[%clk 0:01:02]}  Nd3 {[%clk 0:00:11]} 24. Qxe4 {[%clk 0:00:57]}  Nc1+ {[%clk 0:00:03]} 25. Bxc1 {[%clk 0:00:54]}  Qxc1 {[%clk 0:00:04]} 26. Nf5 {[%clk 0:00:50]}  g6 {[%clk 0:00:02]} 27. Ne7+ {[%clk 0:00:41]}  Kg7 {[%clk 0:00:03]} 28. Nd5 {[%clk 0:00:35]}  f6 {[%clk 0:00:00]} 29. g4 {[%clk 0:00:33]} 1-0


[Site "https://www.chess.com"]

[Event "Titled Tuesday Blitz August 15 Early 2023"]
[White "Rivas Garcia, Victor"]
[Black "MarijaKuznecova"]
[WhiteFideId "2217740"]
[WhiteElo "2232"]
[BlackElo "2374"]
[Result "1-0"]
[Round "4"]
[TimeControl "180+1"]
[Date "2023.08.15"]
[WhiteClock "0:00:20"]
[BlackClock "0:00:00"]
[Board "215"]

1. e4 {[%clk 0:03:00]}  c5 {[%clk 0:02:59]} 2. Nc3 {[%clk 0:03:00]}  d6 {[%clk 0:02:59]} 3. f4 {[%clk 0:03:00]}  Nc6 {[%clk 0:02:58]} 4. Nf3 {[%clk 0:03:00]}  g6 {[%clk 0:02:59]} 5. Bb5 {[%clk 0:03:00]}  Bg7 {[%clk 0:02:59]} 6. Bxc6+ {[%clk 0:03:00]}  bxc6 {[%clk 0:02:58]} 7. d3 {[%clk 0:03:00]}  e6 {[%clk 0:02:58]} 8. O-O {[%clk 0:03:00]}  Ne7 {[%clk 0:02:58]} 9. Qe1 {[%clk 0:03:00]}  O-O {[%clk 0:02:58]} 10. Qh4 {[%clk 0:03:00]}  Rb8 {[%clk 0:02:44]} 11. f5 {[%clk 0:02:55]}  gxf5 {[%clk 0:02:34]} 12. Bh6 {[%clk 0:02:36]}  Ng6 {[%clk 0:02:34]} 13. Qh5 {[%clk 0:02:36]}  Bxh6 {[%clk 0:02:24]} 14. Qxh6 {[%clk 0:02:35]}  Qf6 {[%clk 0:02:24]} 15. exf5 {[%clk 0:02:26]}  exf5 {[%clk 0:02:25]} 16. Rab1 {[%clk 0:02:17]}  Be6 {[%clk 0:02:06]} 17. Ng5 {[%clk 0:02:07]}  Qg7 {[%clk 0:02:06]} 18. Qh5 {[%clk 0:02:07]}  h6 {[%clk 0:01:58]} 19. Nh3 {[%clk 0:01:50]}  Qd4+ {[%clk 0:01:54]} 20. Kh1 {[%clk 0:01:50]}  Kg7 {[%clk 0:01:42]} 21. Ne2 {[%clk 0:01:36]}  Qg4 {[%clk 0:01:39]} 22. Nhf4 {[%clk 0:01:33]}  Nxf4 {[%clk 0:01:29]} 23. Nxf4 {[%clk 0:01:32]}  Qxh5 {[%clk 0:01:28]} 24. Nxh5+ {[%clk 0:01:31]}  Kg6 {[%clk 0:01:25]} 25. Nf4+ {[%clk 0:01:31]}  Kh7 {[%clk 0:01:17]} 26. b3 {[%clk 0:01:30]}  d5 {[%clk 0:01:13]} 27. Rbe1 {[%clk 0:01:27]}  Rfe8 {[%clk 0:01:12]} 28. c4 {[%clk 0:01:20]}  dxc4 {[%clk 0:00:59]} 29. dxc4 {[%clk 0:01:19]}  Rbd8 {[%clk 0:00:59]} 30. Rd1 {[%clk 0:01:18]}  Kg8 {[%clk 0:00:50]} 31. Nh5 {[%clk 0:01:13]}  Kf8 {[%clk 0:00:49]} 32. Nf6 {[%clk 0:01:13]}  Rxd1 {[%clk 0:00:49]} 33. Rxd1 {[%clk 0:01:12]}  Rc8 {[%clk 0:00:47]} 34. Nd7+ {[%clk 0:01:06]}  Bxd7 {[%clk 0:00:46]} 35. Rxd7 {[%clk 0:01:05]}  Re8 {[%clk 0:00:42]} 36. h3 {[%clk 0:01:05]}  Re7 {[%clk 0:00:42]} 37. Rd8+ {[%clk 0:01:04]}  Kg7 {[%clk 0:00:42]} 38. Rd6 {[%clk 0:01:04]}  Re1+ {[%clk 0:00:32]} 39. Kh2 {[%clk 0:01:04]}  Re2 {[%clk 0:00:33]} 40. Rxc6 {[%clk 0:01:02]}  f4 {[%clk 0:00:33]} 41. Kg1 {[%clk 0:00:58]}  Rxa2 {[%clk 0:00:28]} 42. Rxc5 {[%clk 0:00:58]}  Rb2 {[%clk 0:00:27]} 43. Rb5 {[%clk 0:00:55]}  Kf6 {[%clk 0:00:23]} 44. b4 {[%clk 0:00:52]}  Ke6 {[%clk 0:00:23]} 45. Rb7 {[%clk 0:00:50]}  a6 {[%clk 0:00:18]} 46. c5 {[%clk 0:00:48]}  Kd5 {[%clk 0:00:17]} 47. Rb6 {[%clk 0:00:44]}  f5 {[%clk 0:00:13]} 48. Rxa6 {[%clk 0:00:35]}  Rxb4 {[%clk 0:00:12]} 49. Rxh6 {[%clk 0:00:35]}  Kxc5 {[%clk 0:00:07]} 50. Rf6 {[%clk 0:00:35]}  Kd4 {[%clk 0:00:08]} 51. Rxf5 {[%clk 0:00:35]}  Ke4 {[%clk 0:00:09]} 52. Rf8 {[%clk 0:00:34]}  Rb1+ {[%clk 0:00:08]} 53. Kh2 {[%clk 0:00:34]}  Rb2 {[%clk 0:00:09]} 54. Re8+ {[%clk 0:00:33]}  Kf5 {[%clk 0:00:09]} 55. Rf8+ {[%clk 0:00:31]}  Ke4 {[%clk 0:00:10]} 56. h4 {[%clk 0:00:30]}  Rb5 {[%clk 0:00:06]} 57. Kh3 {[%clk 0:00:29]}  Ke3 {[%clk 0:00:06]} 58. Re8+ {[%clk 0:00:23]}  Kf2 {[%clk 0:00:05]} 59. Rf8 {[%clk 0:00:23]}  Rb4 {[%clk 0:00:03]} 60. h5 {[%clk 0:00:22]}  Ke3 {[%clk 0:00:01]} 61. h6 {[%clk 0:00:20]}  Rb6 {[%clk 0:00:02]} 62. Rh8 {[%clk 0:00:19]}  f3 {[%clk 0:00:01]} 63. gxf3 {[%clk 0:00:19]}  Kxf3 {[%clk 0:00:02]} 64. Kh4 {[%clk 0:00:19]}  Kf4 {[%clk 0:00:02]} 65. Rf8+ {[%clk 0:00:19]}  Ke5 {[%clk 0:00:02]} 66. Kg5 {[%clk 0:00:20]}  Rb7 {[%clk 0:00:01]} 67. Kg6 {[%clk 0:00:19]}  Rb6+ {[%clk 0:00:02]} 68. Kg7 {[%clk 0:00:19]}  Rb7+ {[%clk 0:00:03]} 69. Rf7 {[%clk 0:00:19]}  Rb8 {[%clk 0:00:02]} 70. h7 {[%clk 0:00:19]}  Ke6 {[%clk 0:00:03]} 71. Rf8 {[%clk 0:00:19]}  Rb7+ {[%clk 0:00:00]} 72. Kg8 {[%clk 0:00:20]} 1-0


[Site "https://www.chess.com"]

[Event "Titled Tuesday Blitz August 15 Early 2023"]
[White "Vaglio Munoz, Jaime"]
[Black "Cheer_Down"]
[WhiteFideId "6500145"]
[WhiteElo "2218"]
[BlackElo "2369"]
[Result "1-0"]
[Round "4"]
[TimeControl "180+1"]
[Date "2023.08.15"]
[WhiteClock "0:02:18"]
[BlackClock "0:01:11"]
[Board "216"]

1. Nf3 {[%clk 0:03:00]}  d5 {[%clk 0:02:56]} 2. c4 {[%clk 0:03:00]}  d4 {[%clk 0:02:56]} 3. b4 {[%clk 0:02:58]}  g5 {[%clk 0:02:55]} 4. Bb2 {[%clk 0:02:56]}  Bg7 {[%clk 0:02:45]} 5. d3 {[%clk 0:02:55]}  g4 {[%clk 0:02:41]} 6. Nfd2 {[%clk 0:02:54]}  e5 {[%clk 0:02:38]} 7. g3 {[%clk 0:02:54]}  a5 {[%clk 0:02:35]} 8. a3 {[%clk 0:02:51]}  h5 {[%clk 0:02:23]} 9. Bg2 {[%clk 0:02:51]}  h4 {[%clk 0:02:24]} 10. b5 {[%clk 0:02:49]}  Nd7 {[%clk 0:02:20]} 11. a4 {[%clk 0:02:47]}  f5 {[%clk 0:02:00]} 12. Ba3 {[%clk 0:02:40]}  Ngf6 {[%clk 0:01:53]} 13. Nb3 {[%clk 0:02:37]}  Rb8 {[%clk 0:01:49]} 14. e3 {[%clk 0:02:35]}  dxe3 {[%clk 0:01:43]} 15. fxe3 {[%clk 0:02:36]}  hxg3 {[%clk 0:01:39]} 16. hxg3 {[%clk 0:02:35]}  Rxh1+ {[%clk 0:01:39]} 17. Bxh1 {[%clk 0:02:36]}  Nh5 {[%clk 0:01:37]} 18. Kf2 {[%clk 0:02:34]}  f4 {[%clk 0:01:23]} 19. Qxg4 {[%clk 0:02:26]}  Ndf6 {[%clk 0:01:23]} 20. Qg6+ {[%clk 0:02:25]}  Kd7 {[%clk 0:01:20]} 21. Nc5+ {[%clk 0:02:22]}  Kd6 {[%clk 0:01:11]} 22. Ne4+ {[%clk 0:02:18]} 1-0


[Site "https://www.chess.com"]

[Event "Titled Tuesday Blitz August 15 Early 2023"]
[White "Topalov, Aleksandar"]
[Black "KSho99"]
[WhiteFideId "925659"]
[WhiteElo "2361"]
[BlackElo "2203"]
[Result "1-0"]
[Round "4"]
[TimeControl "180+1"]
[Date "2023.08.15"]
[WhiteClock "0:00:55"]
[BlackClock "0:00:52"]
[Board "218"]

1. b3 {[%clk 0:02:59]}  f5 {[%clk 0:02:56]} 2. Bb2 {[%clk 0:02:58]}  Nf6 {[%clk 0:02:57]} 3. Bxf6 {[%clk 0:02:57]}  exf6 {[%clk 0:02:56]} 4. c4 {[%clk 0:02:58]}  b6 {[%clk 0:02:44]} 5. Nc3 {[%clk 0:02:57]}  Bb7 {[%clk 0:02:44]} 6. e3 {[%clk 0:02:56]}  Nc6 {[%clk 0:02:38]} 7. Nge2 {[%clk 0:02:55]}  Ne5 {[%clk 0:02:37]} 8. d4 {[%clk 0:02:54]}  Nf7 {[%clk 0:02:28]} 9. a3 {[%clk 0:02:52]}  h5 {[%clk 0:02:25]} 10. Nf4 {[%clk 0:02:46]}  h4 {[%clk 0:02:19]} 11. Ng6 {[%clk 0:02:45]}  Rh6 {[%clk 0:02:18]} 12. Nxf8 {[%clk 0:02:45]}  Kxf8 {[%clk 0:02:19]} 13. h3 {[%clk 0:02:43]}  g5 {[%clk 0:02:17]} 14. Nd5 {[%clk 0:02:35]}  Bxd5 {[%clk 0:02:14]} 15. cxd5 {[%clk 0:02:35]}  Nd6 {[%clk 0:02:15]} 16. Bd3 {[%clk 0:02:33]}  Qe7 {[%clk 0:02:13]} 17. Rc1 {[%clk 0:02:28]}  f4 {[%clk 0:01:57]} 18. Qf3 {[%clk 0:02:21]}  Re8 {[%clk 0:01:50]} 19. Rxc7 {[%clk 0:02:04]}  fxe3 {[%clk 0:01:47]} 20. O-O {[%clk 0:01:53]}  exf2+ {[%clk 0:01:30]} 21. Qxf2 {[%clk 0:01:48]}  Qe3 {[%clk 0:01:27]} 22. Rxd7 {[%clk 0:01:33]}  Qxf2+ {[%clk 0:01:04]} 23. Rxf2 {[%clk 0:01:32]}  Ne4 {[%clk 0:01:05]} 24. Bxe4 {[%clk 0:01:19]}  Rxe4 {[%clk 0:01:05]} 25. Rc2 {[%clk 0:01:17]}  Ke8 {[%clk 0:01:02]} 26. Rxa7 {[%clk 0:01:17]}  Kd8 {[%clk 0:01:02]} 27. Rc6 {[%clk 0:01:08]}  Rxd4 {[%clk 0:01:01]} 28. Rxb6 {[%clk 0:01:08]}  Kc8 {[%clk 0:01:00]} 29. d6 {[%clk 0:00:56]}  Rh8 {[%clk 0:00:52]} 30. Ra8+ {[%clk 0:00:55]} 1-0


[Site "https://www.chess.com"]